[Event "*** SCC Grand Prix: Titled Tuesday Blitz"]
[Site "Chess.com"]
[Date "2020.08.11"]
[Round "4"]
[White "Grineva_Marianna"]
[Black "PowerThinking2650"]
[Result "1-0"]
[WhiteElo "2211"]
[BlackElo "2438"]
[TimeControl "180+1"]
[EndTime "10:37:57 PDT"]
[Termination "Grineva_Marianna won by resignation"]

1. e4 {[%clk 0:03:00.9]} 1... e5 {[%clk 0:02:59.3]} 2. Nf3 {[%clk 0:02:58.3]}
2... Nc6 {[%clk 0:02:59.1]} 3. Bb5 {[%clk 0:02:57.3]} 3... a6 {[%clk 0:02:59.2]}
4. Ba4 {[%clk 0:02:56.5]} 4... Nf6 {[%clk 0:02:59]} 5. O-O {[%clk 0:02:56.6]}
5... Be7 {[%clk 0:02:59]} 6. Re1 {[%clk 0:02:55.6]} 6... b5 {[%clk 0:02:58.9]}
7. Bb3 {[%clk 0:02:55.3]} 7... d6 {[%clk 0:02:59.3]} 8. c3 {[%clk 0:02:54.8]}
8... O-O {[%clk 0:02:59.6]} 9. d4 {[%clk 0:02:53]} 9... Re8 {[%clk 0:02:59.6]}
10. h3 {[%clk 0:02:52.8]} 10... Bf8 {[%clk 0:02:58.7]} 11. d5 {[%clk 0:02:42.9]}
11... Nb8 {[%clk 0:02:54.1]} 12. Nbd2 {[%clk 0:02:37.1]} 12... h6 {[%clk
0:02:47.6]} 13. Nf1 {[%clk 0:02:36.6]} 13... Bb7 {[%clk 0:02:47.8]} 14. a4
{[%clk 0:02:35.4]} 14... Nbd7 {[%clk 0:02:46.1]} 15. Qe2 {[%clk 0:02:29]} 15...
c6 {[%clk 0:02:41.1]} 16. dxc6 {[%clk 0:02:07]} 16... Bxc6 {[%clk 0:02:42]} 17.
Ng3 {[%clk 0:02:07.1]} 17... Nc5 {[%clk 0:02:38.6]} 18. Bc2 {[%clk 0:01:51.2]}
18... bxa4 {[%clk 0:02:38.1]} 19. Rd1 {[%clk 0:01:36.5]} 19... g6 {[%clk
0:02:30.4]} 20. Be3 {[%clk 0:01:21.4]} 20... Qc7 {[%clk 0:02:21.7]} 21. Bxc5
{[%clk 0:01:17]} 21... dxc5 {[%clk 0:02:22.2]} 22. Bxa4 {[%clk 0:01:16.3]} 22...
a5 {[%clk 0:02:04.6]} 23. Bb3 {[%clk 0:01:12.5]} 23... Rab8 {[%clk 0:01:51.6]}
24. Bc4 {[%clk 0:01:11.4]} 24... a4 {[%clk 0:01:48.4]} 25. Bd5 {[%clk
0:00:52.3]} 25... Nxd5 {[%clk 0:01:44.8]} 26. exd5 {[%clk 0:00:53.2]} 26... Bb5
{[%clk 0:01:44.6]} 27. c4 {[%clk 0:00:53.2]} 27... Bd7 {[%clk 0:01:43.2]} 28.
Ne4 {[%clk 0:00:52.9]} 28... Bg7 {[%clk 0:01:35.6]} 29. Nc3 {[%clk 0:00:42.5]}
29... f5 {[%clk 0:01:26.3]} 30. Nxa4 {[%clk 0:00:39.2]} 30... e4 {[%clk
0:01:26]} 31. Nd2 {[%clk 0:00:38]} 31... Bxa4 {[%clk 0:01:21.9]} 32. Rxa4 {[%clk
0:00:38.9]} 32... Rxb2 {[%clk 0:01:21.8]} 33. Rb1 {[%clk 0:00:36.6]} 33... Ra8
{[%clk 0:01:20.2]} 34. Rxa8+ {[%clk 0:00:35.4]} 1-0

[Event "*** SCC Grand Prix: Titled Tuesday Blitz"]
[Site "Chess.com"]
[Date "2020.08.11"]
[Round "4"]
[White "DinaBelenkaya"]
[Black "Alexander_Moskalenko"]
[Result "0-1"]
[WhiteElo "2342"]
[BlackElo "2837"]
[TimeControl "180+1"]
[EndTime "10:37:57 PDT"]
[Termination "Alexander_Moskalenko won by checkmate"]

1. e4 {[%clk 0:03:00.9]} 1... Nc6 {[%clk 0:03:00.9]} 2. Nf3 {[%clk 0:02:57.8]}
2... Nb8 {[%clk 0:03:01.8]} 3. d4 {[%clk 0:02:49.9]} 3... Nf6 {[%clk 0:03:01]}
4. e5 {[%clk 0:02:44.8]} 4... Ng8 {[%clk 0:03:01.9]} 5. Nc3 {[%clk 0:02:36.6]}
5... e6 {[%clk 0:03:01.6]} 6. Bd3 {[%clk 0:02:33.9]} 6... d5 {[%clk 0:03:00.4]}
7. exd6 {[%clk 0:02:33.9]} 7... cxd6 {[%clk 0:02:59.9]} 8. O-O {[%clk
0:02:34.8]} 8... Nf6 {[%clk 0:02:59.8]} 9. Bg5 {[%clk 0:02:27.6]} 9... Be7
{[%clk 0:03:00.2]} 10. Qd2 {[%clk 0:02:12.1]} 10... d5 {[%clk 0:03:00.2]} 11.
Ne5 {[%clk 0:01:57.5]} 11... Nc6 {[%clk 0:02:59.1]} 12. Ne2 {[%clk 0:01:43.6]}
12... h6 {[%clk 0:02:56.9]} 13. Bf4 {[%clk 0:01:39.4]} 13... Nd7 {[%clk
0:02:49.9]} 14. Qe3 {[%clk 0:01:28.8]} 14... Ndxe5 {[%clk 0:02:46.2]} 15. dxe5
{[%clk 0:01:29.7]} 15... Bg5 {[%clk 0:02:43.4]} 16. c3 {[%clk 0:01:24.8]} 16...
Bd7 {[%clk 0:02:39.5]} 17. Qg3 {[%clk 0:01:13.8]} 17... Rc8 {[%clk 0:02:38.7]}
18. h4 {[%clk 0:01:09.2]} 18... Bxf4 {[%clk 0:02:37.1]} 19. Qxg7 {[%clk
0:01:09.1]} 19... Bxe5 {[%clk 0:02:35.7]} 20. Qg4 {[%clk 0:01:02]} 20... h5
{[%clk 0:02:36.1]} 21. Qf3 {[%clk 0:01:00.8]} 21... Qxh4 {[%clk 0:02:35.6]} 22.
g3 {[%clk 0:01:00.1]} 22... Qg4 {[%clk 0:02:35.4]} 23. Qg2 {[%clk 0:00:59.2]}
23... Bd6 {[%clk 0:02:32.1]} 24. f3 {[%clk 0:00:57.3]} 24... Qg7 {[%clk
0:02:31.8]} 25. Rae1 {[%clk 0:00:53.3]} 25... h4 {[%clk 0:02:31.8]} 26. g4
{[%clk 0:00:53]} 26... h3 {[%clk 0:02:31.7]} 27. Qf2 {[%clk 0:00:53]} 27... Qg5
{[%clk 0:02:31.2]} 28. Kh1 {[%clk 0:00:48.4]} 28... Qh4 {[%clk 0:02:31]} 29.
Qxh4 {[%clk 0:00:39.4]} 29... Rxh4 {[%clk 0:02:31.9]} 30. Rg1 {[%clk 0:00:24.8]}
30... Ke7 {[%clk 0:02:31.2]} 31. f4 {[%clk 0:00:23.6]} 31... Rg8 {[%clk
0:02:30.6]} 32. g5 {[%clk 0:00:21.1]} 32... Bxf4 {[%clk 0:02:30.1]} 33. Nxf4
{[%clk 0:00:19.8]} 33... Rxf4 {[%clk 0:02:31]} 34. Kh2 {[%clk 0:00:19.1]} 34...
Rf2+ {[%clk 0:02:31.2]} 35. Kxh3 {[%clk 0:00:17.7]} 35... Rf3+ {[%clk
0:02:31.7]} 36. Rg3 {[%clk 0:00:18.2]} 36... Rxg3+ {[%clk 0:02:32.4]} 37. Kxg3
{[%clk 0:00:18.8]} 37... Rxg5+ {[%clk 0:02:33.3]} 38. Kf4 {[%clk 0:00:18.6]}
38... Rg8 {[%clk 0:02:34.2]} 39. Kf3 {[%clk 0:00:18.6]} 39... e5 {[%clk
0:02:34.5]} 40. Bc2 {[%clk 0:00:17.1]} 40... f5 {[%clk 0:02:34.8]} 41. b4 {[%clk
0:00:16]} 41... f4 {[%clk 0:02:35.1]} 42. Rh1 {[%clk 0:00:15.2]} 42... Rg3+
{[%clk 0:02:36]} 43. Kf2 {[%clk 0:00:15.4]} 43... Rxc3 {[%clk 0:02:36.3]} 44.
Rh7+ {[%clk 0:00:15.6]} 44... Kd8 {[%clk 0:02:36.8]} 45. Bg6 {[%clk 0:00:15]}
45... Nd4 {[%clk 0:02:36.5]} 46. Rh8+ {[%clk 0:00:14.5]} 46... Kc7 {[%clk
0:02:36.6]} 47. Rh7 {[%clk 0:00:15.4]} 47... Kd6 {[%clk 0:02:36.1]} 48. Rh6
{[%clk 0:00:15.4]} 48... Be6 {[%clk 0:02:36.8]} 49. Bf7 {[%clk 0:00:14.9]} 49...
e4 {[%clk 0:02:37.5]} 50. Bg8 {[%clk 0:00:13.8]} 50... Rc2+ {[%clk 0:02:37.6]}
51. Ke1 {[%clk 0:00:13.1]} 51... f3 {[%clk 0:02:38.5]} 52. Bxe6 {[%clk
0:00:12.6]} 52... Re2+ {[%clk 0:02:37.8]} 53. Kf1 {[%clk 0:00:11.7]} 53... Nxe6
{[%clk 0:02:38.7]} 54. Rh7 {[%clk 0:00:10.4]} 54... d4 {[%clk 0:02:39.2]} 55.
Rxb7 {[%clk 0:00:09.7]} 55... d3 {[%clk 0:02:40.1]} 56. Rb8 {[%clk 0:00:06.1]}
56... d2 {[%clk 0:02:39.1]} 57. Rd8+ {[%clk 0:00:06.4]} 57... Nxd8 {[%clk
0:02:39.7]} 58. b5 {[%clk 0:00:06.2]} 58... d1=Q# {[%clk 0:02:40.6]} 0-1

[Event "*** SCC Grand Prix: Titled Tuesday Blitz"]
[Site "Chess.com"]
[Date "2020.08.11"]
[Round "4"]
[White "Harsha_Bharathakoti"]
[Black "Anuar_Is"]
[Result "0-1"]
[WhiteElo "2844"]
[BlackElo "2701"]
[TimeControl "180+1"]
[EndTime "10:37:59 PDT"]
[Termination "Anuar_Is won by resignation"]

1. d4 {[%clk 0:03:00.9]} 1... Nf6 {[%clk 0:02:59.8]} 2. c4 {[%clk 0:03:00.7]}
2... g6 {[%clk 0:02:59.9]} 3. Nc3 {[%clk 0:03:00.9]} 3... Bg7 {[%clk 0:03:00.3]}
4. e4 {[%clk 0:03:01.2]} 4... d6 {[%clk 0:03:00.9]} 5. f3 {[%clk 0:03:01.9]}
5... O-O {[%clk 0:03:00.4]} 6. Nge2 {[%clk 0:03:02.4]} 6... c5 {[%clk
0:03:00.1]} 7. d5 {[%clk 0:03:02.5]} 7... e6 {[%clk 0:02:56.4]} 8. Ng3 {[%clk
0:03:02.3]} 8... exd5 {[%clk 0:02:55.2]} 9. cxd5 {[%clk 0:03:03.2]} 9... a6
{[%clk 0:02:53]} 10. a4 {[%clk 0:03:01.2]} 10... Nbd7 {[%clk 0:02:53.1]} 11. Be2
{[%clk 0:03:00.8]} 11... Rb8 {[%clk 0:02:52.5]} 12. O-O {[%clk 0:02:59.8]} 12...
Ne5 {[%clk 0:02:51.2]} 13. Be3 {[%clk 0:02:52]} 13... Bd7 {[%clk 0:02:49.5]} 14.
a5 {[%clk 0:02:49.7]} 14... b5 {[%clk 0:02:47.1]} 15. axb6 {[%clk 0:02:50.6]}
15... Rxb6 {[%clk 0:02:47.2]} 16. Qc2 {[%clk 0:02:45.1]} 16... Qb8 {[%clk
0:02:30.6]} 17. Ra2 {[%clk 0:02:42]} 17... h5 {[%clk 0:02:23]} 18. h3 {[%clk
0:02:36.9]} 18... h4 {[%clk 0:02:21.9]} 19. Nh1 {[%clk 0:02:37.2]} 19... c4
{[%clk 0:02:14.3]} 20. Nf2 {[%clk 0:02:27.7]} 20... Nh5 {[%clk 0:02:12.8]} 21.
f4 {[%clk 0:02:24.8]} 21... Nd3 {[%clk 0:02:12.1]} 22. Nxd3 {[%clk 0:01:37.3]}
22... cxd3 {[%clk 0:02:13]} 23. Bxd3 {[%clk 0:01:38.2]} 23... Ng3 {[%clk
0:02:12.8]} 24. Rf2 {[%clk 0:01:09]} 24... Rc8 {[%clk 0:02:09.1]} 25. Bxb6
{[%clk 0:00:55.1]} 25... Qxb6 {[%clk 0:02:08.6]} 26. Rxa6 {[%clk 0:00:55.9]}
26... Qe3 {[%clk 0:01:51.5]} 27. Qd2 {[%clk 0:00:51.7]} 27... Qc5 {[%clk
0:01:42]} 28. Kh2 {[%clk 0:00:37.3]} 28... Bd4 {[%clk 0:01:40.6]} 29. Nd1 {[%clk
0:00:37.9]} 29... Bxf2 {[%clk 0:01:17.6]} 30. Nxf2 {[%clk 0:00:38.1]} 30... Qd4
{[%clk 0:01:15.2]} 31. Rxd6 {[%clk 0:00:35.4]} 31... Nf1+ {[%clk 0:01:13.9]} 32.
Bxf1 {[%clk 0:00:35.9]} 32... Qxd2 {[%clk 0:01:14.2]} 0-1

[Event "*** SCC Grand Prix: Titled Tuesday Blitz"]
[Site "Chess.com"]
[Date "2020.08.11"]
[Round "4"]
[White "eightbyeightchess"]
[Black "Gorin_Leonid"]
[Result "0-1"]
[WhiteElo "2447"]
[BlackElo "2623"]
[TimeControl "180+1"]
[EndTime "10:37:59 PDT"]
[Termination "Gorin_Leonid won by resignation"]

1. e4 {[%clk 0:03:00.9]} 1... e5 {[%clk 0:02:59.3]} 2. Nf3 {[%clk 0:03:01]} 2...
Nc6 {[%clk 0:02:59.2]} 3. Bb5 {[%clk 0:03:01.6]} 3... a6 {[%clk 0:02:58.5]} 4.
Ba4 {[%clk 0:03:01.9]} 4... Nf6 {[%clk 0:02:58.6]} 5. d4 {[%clk 0:03:01.9]} 5...
exd4 {[%clk 0:02:58]} 6. O-O {[%clk 0:03:01.8]} 6... Be7 {[%clk 0:02:57.2]} 7.
Re1 {[%clk 0:03:01.7]} 7... O-O {[%clk 0:02:56.1]} 8. e5 {[%clk 0:03:00.8]} 8...
Nd5 {[%clk 0:02:56]} 9. Nxd4 {[%clk 0:02:59.6]} 9... Nb6 {[%clk 0:02:54.4]} 10.
Bb3 {[%clk 0:02:55.6]} 10... Nxd4 {[%clk 0:02:53.1]} 11. Qxd4 {[%clk 0:02:55.4]}
11... d5 {[%clk 0:02:53.5]} 12. exd6 {[%clk 0:02:49.9]} 12... Bf6 {[%clk
0:02:53.5]} 13. Qd3 {[%clk 0:02:43.4]} 13... Qxd6 {[%clk 0:02:53.1]} 14. Qxd6
{[%clk 0:02:43.2]} 14... cxd6 {[%clk 0:02:52.9]} 15. Be3 {[%clk 0:02:37.6]}
15... Bxb2 {[%clk 0:02:47.9]} 16. Nd2 {[%clk 0:02:34]} 16... Bxa1 {[%clk
0:02:46.7]} 17. Rxa1 {[%clk 0:02:34.9]} 17... Nd7 {[%clk 0:02:44.7]} 18. Ne4
{[%clk 0:02:33.4]} 18... Nc5 {[%clk 0:02:36.4]} 19. Nxc5 {[%clk 0:02:28.8]}
19... dxc5 {[%clk 0:02:35.7]} 20. Bxc5 {[%clk 0:02:29.3]} 20... Re8 {[%clk
0:02:33.8]} 21. Bd5 {[%clk 0:02:25.6]} 21... Be6 {[%clk 0:02:19.5]} 22. Bxb7
{[%clk 0:02:24.9]} 22... Rab8 {[%clk 0:02:16]} 23. Bxa6 {[%clk 0:02:24.2]} 23...
Rb2 {[%clk 0:01:56.5]} 24. c4 {[%clk 0:02:14.1]} 24... Ra8 {[%clk 0:01:51.4]}
25. Bb5 {[%clk 0:01:50.6]} 25... Rbxa2 {[%clk 0:01:49.8]} 26. Rxa2 {[%clk
0:01:47.7]} 26... Rxa2 {[%clk 0:01:49.2]} 27. h3 {[%clk 0:01:45.9]} 27... Rc2
{[%clk 0:01:48.2]} 28. Be3 {[%clk 0:01:39.5]} 28... Bxc4 {[%clk 0:01:47.2]} 29.
Bd7 {[%clk 0:01:37.8]} 29... Be6 {[%clk 0:01:45.7]} 30. Bb5 {[%clk 0:01:37.3]}
30... Rb2 {[%clk 0:01:45.1]} 31. Bd3 {[%clk 0:01:36.6]} 31... Rb3 {[%clk
0:01:44.6]} 32. Be4 {[%clk 0:01:36.8]} 32... f6 {[%clk 0:01:41.6]} 33. g4 {[%clk
0:01:36.9]} 33... h5 {[%clk 0:01:39]} 34. gxh5 {[%clk 0:01:37]} 34... Rb4 {[%clk
0:01:36]} 35. Bg2 {[%clk 0:01:31.1]} 35... Rh4 {[%clk 0:01:34.8]} 36. h6 {[%clk
0:01:29.6]} 36... g5 {[%clk 0:01:33.5]} 37. Kh2 {[%clk 0:01:25.5]} 37... Bxh3
{[%clk 0:01:28.8]} 38. Bxh3 {[%clk 0:01:15.8]} 38... g4 {[%clk 0:01:28.8]} 39.
Bd4 {[%clk 0:00:53.4]} 39... Rxh3+ {[%clk 0:01:23.4]} 40. Kg2 {[%clk 0:00:53.5]}
40... Rf3 {[%clk 0:01:21.3]} 41. Be3 {[%clk 0:00:52.2]} 41... Kh7 {[%clk
0:01:21.1]} 42. Bc1 {[%clk 0:00:51.7]} 42... Kg6 {[%clk 0:01:20.6]} 43. Bd2
{[%clk 0:00:51.5]} 43... f5 {[%clk 0:01:20.7]} 44. Bc1 {[%clk 0:00:49.9]} 44...
f4 {[%clk 0:01:20.9]} 0-1

[Event "*** SCC Grand Prix: Titled Tuesday Blitz"]
[Site "Chess.com"]
[Date "2020.08.11"]
[Round "4"]
[White "jlandaw"]
[Black "dretch"]
[Result "0-1"]
[WhiteElo "2516"]
[BlackElo "2791"]
[TimeControl "180+1"]
[EndTime "10:38:01 PDT"]
[Termination "dretch won by resignation"]

1. e4 {[%clk 0:03:00.9]} 1... e6 {[%clk 0:02:55.7]} 2. d4 {[%clk 0:03:00]} 2...
d5 {[%clk 0:02:56.1]} 3. e5 {[%clk 0:03:00.2]} 3... c5 {[%clk 0:02:56.2]} 4. c3
{[%clk 0:03:00.4]} 4... Nc6 {[%clk 0:02:53.9]} 5. Nf3 {[%clk 0:03:00.7]} 5...
Qb6 {[%clk 0:02:51.6]} 6. Bd3 {[%clk 0:02:58.7]} 6... cxd4 {[%clk 0:02:49.3]} 7.
cxd4 {[%clk 0:02:58.7]} 7... Bd7 {[%clk 0:02:49.5]} 8. O-O {[%clk 0:02:59]} 8...
Nxd4 {[%clk 0:02:49.7]} 9. Nxd4 {[%clk 0:02:59.9]} 9... Qxd4 {[%clk 0:02:50]}
10. Nc3 {[%clk 0:03:00.5]} 10... a6 {[%clk 0:02:50.4]} 11. Qe2 {[%clk
0:03:00.2]} 11... Ne7 {[%clk 0:02:49.8]} 12. Kh1 {[%clk 0:03:00.4]} 12... Nc6
{[%clk 0:02:49]} 13. f4 {[%clk 0:02:59.3]} 13... Bc5 {[%clk 0:02:49.1]} 14. a3
{[%clk 0:02:34.1]} 14... Ba7 {[%clk 0:02:44.4]} 15. Bd2 {[%clk 0:02:25.9]} 15...
Rc8 {[%clk 0:02:40.3]} 16. Rae1 {[%clk 0:02:10.3]} 16... g6 {[%clk 0:02:32.3]}
17. Bb1 {[%clk 0:02:06.3]} 17... Qb6 {[%clk 0:02:21]} 18. b4 {[%clk 0:01:49.8]}
18... Nd4 {[%clk 0:02:17.7]} 19. Qd1 {[%clk 0:01:47.8]} 19... O-O {[%clk
0:02:07.4]} 20. f5 {[%clk 0:01:37.7]} 20... Nb5 {[%clk 0:01:56.7]} 21. f6 {[%clk
0:01:22.5]} 21... Nxc3 {[%clk 0:01:28]} 22. Bxc3 {[%clk 0:01:23.4]} 22... Rxc3
{[%clk 0:01:23.6]} 23. Qd2 {[%clk 0:01:20.3]} 23... Re3 {[%clk 0:01:23.2]} 24.
Rc1 {[%clk 0:00:44.2]} 24... Bb5 {[%clk 0:01:14.9]} 25. Rf3 {[%clk 0:00:42.6]}
25... Qd4 {[%clk 0:01:11.5]} 26. Qf2 {[%clk 0:00:19.9]} 26... Rxf3 {[%clk
0:01:08.5]} 27. Qxf3 {[%clk 0:00:20.8]} 27... Qxe5 {[%clk 0:01:08]} 0-1

[Event "*** SCC Grand Prix: Titled Tuesday Blitz"]
[Site "Chess.com"]
[Date "2020.08.11"]
[Round "4"]
[White "Shivagami"]
[Black "vovachesss"]
[Result "0-1"]
[WhiteElo "2235"]
[BlackElo "2588"]
[TimeControl "180+1"]
[EndTime "10:38:02 PDT"]
[Termination "vovachesss won by resignation"]

1. d4 {[%clk 0:02:57.9]} 1... Nf6 {[%clk 0:02:58.3]} 2. c4 {[%clk 0:02:58]} 2...
d6 {[%clk 0:02:56.9]} 3. Nc3 {[%clk 0:02:57.9]} 3... Nbd7 {[%clk 0:02:55.2]} 4.
e4 {[%clk 0:02:58.1]} 4... e5 {[%clk 0:02:55.7]} 5. d5 {[%clk 0:02:56.6]} 5...
Be7 {[%clk 0:02:55.8]} 6. f4 {[%clk 0:02:56.7]} 6... O-O {[%clk 0:02:56.4]} 7.
f5 {[%clk 0:02:57]} 7... g6 {[%clk 0:02:52.9]} 8. g4 {[%clk 0:02:55.4]} 8... Kh8
{[%clk 0:02:51.9]} 9. Bh6 {[%clk 0:02:51.7]} 9... gxf5 {[%clk 0:02:48.6]} 10.
exf5 {[%clk 0:02:45.2]} 10... Rg8 {[%clk 0:02:30.8]} 11. g5 {[%clk 0:02:43.2]}
11... Ne8 {[%clk 0:02:28.1]} 12. h4 {[%clk 0:02:43.2]} 12... Nc5 {[%clk
0:02:19.9]} 13. Bh3 {[%clk 0:02:37.7]} 13... f6 {[%clk 0:01:49.8]} 14. Qh5
{[%clk 0:02:28.2]} 14... Ng7 {[%clk 0:01:45.2]} 15. Bxg7+ {[%clk 0:02:18.2]}
15... Rxg7 {[%clk 0:01:45]} 16. g6 {[%clk 0:02:15.8]} 16... Nd3+ {[%clk
0:01:44.7]} 17. Kf1 {[%clk 0:01:40.8]} 17... Nxb2 {[%clk 0:01:33.5]} 18. Nf3
{[%clk 0:01:29.5]} 18... Nxc4 {[%clk 0:01:33.5]} 19. Ne4 {[%clk 0:01:18.1]}
19... Qe8 {[%clk 0:01:21.5]} 20. Kf2 {[%clk 0:01:12.1]} 20... Qa4 {[%clk
0:01:14.5]} 21. Rag1 {[%clk 0:00:34.9]} 21... Qc2+ {[%clk 0:01:07.2]} 0-1

[Event "*** SCC Grand Prix: Titled Tuesday Blitz"]
[Site "Chess.com"]
[Date "2020.08.11"]
[Round "4"]
[White "BabyBoss31"]
[Black "sergivila"]
[Result "0-1"]
[WhiteElo "2214"]
[BlackElo "2427"]
[TimeControl "180+1"]
[EndTime "10:38:02 PDT"]
[Termination "sergivila won by resignation"]

1. d4 {[%clk 0:02:52]} 1... Nf6 {[%clk 0:02:58.6]} 2. c4 {[%clk 0:02:51.5]} 2...
c5 {[%clk 0:02:58.1]} 3. d5 {[%clk 0:02:50.5]} 3... b5 {[%clk 0:02:58.2]} 4. Qc2
{[%clk 0:02:31.2]} 4... b4 {[%clk 0:02:47]} 5. e4 {[%clk 0:02:29.7]} 5... d6
{[%clk 0:02:46.9]} 6. Nf3 {[%clk 0:02:14.3]} 6... g6 {[%clk 0:02:46.8]} 7. Bd3
{[%clk 0:02:08.7]} 7... Bg7 {[%clk 0:02:46.8]} 8. O-O {[%clk 0:02:07.9]} 8...
O-O {[%clk 0:02:46.8]} 9. Re1 {[%clk 0:01:59]} 9... e5 {[%clk 0:02:37.1]} 10. h3
{[%clk 0:01:43.8]} 10... Ne8 {[%clk 0:02:31.9]} 11. a3 {[%clk 0:01:37.8]} 11...
a5 {[%clk 0:02:28.5]} 12. axb4 {[%clk 0:01:36.9]} 12... cxb4 {[%clk 0:02:27.2]}
13. Bg5 {[%clk 0:01:24.6]} 13... f6 {[%clk 0:02:24.8]} 14. Be3 {[%clk
0:01:22.9]} 14... Na6 {[%clk 0:02:24.7]} 15. c5 {[%clk 0:01:17.4]} 15... dxc5
{[%clk 0:02:20.3]} 16. Bxc5 {[%clk 0:01:18.3]} 16... Nxc5 {[%clk 0:02:18.8]} 17.
Qxc5 {[%clk 0:01:19.2]} 17... Nd6 {[%clk 0:02:18.7]} 18. Nbd2 {[%clk 0:01:13.1]}
18... Rf7 {[%clk 0:02:06.9]} 19. Nc4 {[%clk 0:00:56.5]} 19... Bf8 {[%clk
0:02:05.4]} 20. Nxd6 {[%clk 0:00:45.8]} 20... Bxd6 {[%clk 0:02:06.3]} 21. Qc2
{[%clk 0:00:45.4]} 21... Rc7 {[%clk 0:02:04.8]} 22. Qb3 {[%clk 0:00:41.5]} 22...
Bd7 {[%clk 0:02:04.6]} 23. Nd2 {[%clk 0:00:36.2]} 23... a4 {[%clk 0:02:02.4]}
24. Qd1 {[%clk 0:00:36.1]} 24... Rac8 {[%clk 0:01:58.7]} 25. Rxa4 {[%clk
0:00:23.5]} 25... Bxa4 {[%clk 0:01:57.6]} 26. Qxa4 {[%clk 0:00:22.8]} 26... Rc1
{[%clk 0:01:48]} 27. Rxc1 {[%clk 0:00:19.2]} 27... Rxc1+ {[%clk 0:01:48.9]} 28.
Kh2 {[%clk 0:00:19.4]} 28... f5 {[%clk 0:01:48.9]} 29. exf5 {[%clk 0:00:17.3]}
29... e4+ {[%clk 0:01:48.9]} 30. g3 {[%clk 0:00:13.9]} 30... exd3 {[%clk
0:01:48.7]} 31. fxg6 {[%clk 0:00:14.1]} 31... hxg6 {[%clk 0:01:41.7]} 32. Qb3
{[%clk 0:00:14.1]} 32... Qf6 {[%clk 0:01:38.4]} 33. Ne4 {[%clk 0:00:12.6]} 33...
Qd4 {[%clk 0:01:32.8]} 0-1

[Event "*** SCC Grand Prix: Titled Tuesday Blitz"]
[Site "Chess.com"]
[Date "2020.08.11"]
[Round "4"]
[White "Rud_Makarian"]
[Black "SzMM19"]
[Result "1-0"]
[WhiteElo "2677"]
[BlackElo "2480"]
[TimeControl "180+1"]
[EndTime "10:38:07 PDT"]
[Termination "Rud_Makarian won by resignation"]

1. d4 {[%clk 0:03:00.9]} 1... Nf6 {[%clk 0:02:59.6]} 2. c4 {[%clk 0:03:01.5]}
2... e6 {[%clk 0:02:58.1]} 3. Nf3 {[%clk 0:03:01.6]} 3... b6 {[%clk 0:02:57.9]}
4. g3 {[%clk 0:03:00.6]} 4... Bb7 {[%clk 0:02:57.9]} 5. Bg2 {[%clk 0:03:00.8]}
5... Be7 {[%clk 0:02:58.8]} 6. O-O {[%clk 0:03:01]} 6... O-O {[%clk 0:02:58.5]}
7. Re1 {[%clk 0:02:59.5]} 7... Na6 {[%clk 0:02:58.3]} 8. a3 {[%clk 0:02:55.1]}
8... Qc8 {[%clk 0:02:51.8]} 9. b4 {[%clk 0:02:49.6]} 9... c5 {[%clk 0:02:46.5]}
10. dxc5 {[%clk 0:02:35.9]} 10... bxc5 {[%clk 0:02:47.3]} 11. b5 {[%clk
0:02:36.4]} 11... Nc7 {[%clk 0:02:47.5]} 12. Bb2 {[%clk 0:02:36]} 12... d5
{[%clk 0:02:44]} 13. a4 {[%clk 0:02:33.2]} 13... Rd8 {[%clk 0:02:42.1]} 14. Qc1
{[%clk 0:02:27.3]} 14... d4 {[%clk 0:02:39.1]} 15. e3 {[%clk 0:02:22.6]} 15...
d3 {[%clk 0:02:25.2]} 16. Nbd2 {[%clk 0:02:16.8]} 16... Ne4 {[%clk 0:02:24]} 17.
Ra3 {[%clk 0:02:13.3]} 17... Nxd2 {[%clk 0:01:37.1]} 18. Qxd2 {[%clk 0:02:11.1]}
18... Be4 {[%clk 0:01:37.2]} 19. Ne5 {[%clk 0:02:09.6]} 19... Bxg2 {[%clk
0:01:27.4]} 20. Kxg2 {[%clk 0:02:10.5]} 20... Bf6 {[%clk 0:01:02]} 21. Rxd3
{[%clk 0:02:01.4]} 21... Qb7+ {[%clk 0:01:01.8]} 22. f3 {[%clk 0:01:58.7]} 22...
Rxd3 {[%clk 0:00:59.1]} 23. Qxd3 {[%clk 0:01:59.6]} 23... Rd8 {[%clk 0:00:55.1]}
24. Qc2 {[%clk 0:01:56.8]} 24... Ne8 {[%clk 0:00:29.7]} 25. Rd1 {[%clk
0:01:54.2]} 25... Qb6 {[%clk 0:00:28.3]} 26. Rxd8 {[%clk 0:01:47.2]} 26... Qxd8
{[%clk 0:00:26.1]} 27. Nc6 {[%clk 0:01:46.6]} 27... Qd7 {[%clk 0:00:20.1]} 28.
Bxf6 {[%clk 0:01:44.4]} 28... Nxf6 {[%clk 0:00:21]} 29. a5 {[%clk 0:01:44.6]}
29... h6 {[%clk 0:00:18.4]} 30. a6 {[%clk 0:01:44.6]} 30... Ne8 {[%clk
0:00:12.5]} 31. Kf2 {[%clk 0:01:43.2]} 31... g6 {[%clk 0:00:06.1]} 32. Ke2
{[%clk 0:01:43.4]} 32... h5 {[%clk 0:00:06.3]} 33. Qd3 {[%clk 0:01:43.2]} 33...
Qc7 {[%clk 0:00:05.4]} 34. Qd8 {[%clk 0:01:42.2]} 34... Qxd8 {[%clk 0:00:05.5]}
35. Nxd8 {[%clk 0:01:43.1]} 35... Nd6 {[%clk 0:00:06.4]} 36. b6 {[%clk
0:01:42.4]} 1-0